bitfinex/quotes_ETHUSD_20250620
["timestamp","ask_amount","ask_price","bid_price","bid_amount"]
[1750438020904,11.6784433,2489.5,2489.1,4.01750678]
[1750438021203,0.0601,2489.1,2488.4,0.7509]
[1750438021407,0.0601,2488.9,2488.2,4.76984579]
[1750438021621,10.0,2488.7,2488.4,4.01856236]
[1750438021804,10.0,2488.5,2488.3,4.01869046]
[1750438022116,10.0,2488.3,2488.2,4.01893036]
[1750438022308,1.7991,2488.3,2487.7,2.97951658]
[1750438022599,10.0,2488.1,2487.7,2.22861658]
[1750438022804,10.0601,2487.9,2487.5,4.02000965]
[1750438023027,10.0,2487.7,2487.4,4.02011131]
[1750438023178,10.0,2487.5,2487.4,4.02010243]
[1750438023862,2.5121,2488.0,2487.8,4.01949426]
[1750438024061,6.73033299,2487.9,2487.6,4.01986103]
[1750438024263,6.7501,2487.9,2487.6,4.01986103]
[1750438024618,8.65655299,2487.9,2487.5,4.01998334]
[1750438024833,8.61622,2487.9,2487.6,4.01991123]
[1750438025021,0.04033299,2487.8,2487.5,4.01999684]
[1750438025324,10.0,2487.6,2487.5,4.01999684]
[1750438025527,11.92622,2487.9,2487.5,4.01999684]
[1750438025528,1.98632,2487.9,2487.6,4.01989375]
[1750438025838,10.0601,2487.7,2487.6,4.01989375]
[1750438026129,10.0601,2487.7,2487.6,4.01993889]
[1750438026333,10.0601,2487.7,2487.5,4.02002649]
[1750438026531,16.692,2487.6,2487.5,4.02002649]
[1750438026686,16.692,2487.6,2487.5,4.0201005]
[1750438026687,6.692,2487.6,2487.5,4.0201005]
[1750438027030,6.692,2487.6,2487.4,4.0201738]
[1750438027031,0.0601,2487.5,2487.4,4.02026212]
[1750438027197,10.91993299,2487.5,2487.4,4.02026212]
[1750438027404,10.8796,2487.5,2487.4,4.02026212]
[1750438028513,0.0573,2487.4,2487.3,4.02033803]
[1750438028832,0.8768,2487.5,2487.4,4.02026212]
[1750438029033,0.8768,2487.5,2486.8,0.8652]
[1750438029034,17.5115,2487.5,2487.2,4.02054084]
[1750438029239,40.0,2487.4,2486.6,4.02155553]
[1750438029384,0.0573,2487.3,2487.1,4.02073663]
[1750438029583,8.431,2487.2,2487.0,4.0208344]
[1750438029842,0.7624,2486.9,2486.1,0.778]
[1750438030134,16.7493,2486.8,2486.7,4.0212341]
[1750438030431,10.0,2486.8,2486.7,4.0212341]
[1750438030740,16.695,2486.8,2486.7,4.0813341]
[1750438031085,10.0,2486.8,2486.7,4.6313341]
[1750438031284,16.696,2486.8,2486.7,5.51657003]
[1750438031536,16.696,2486.8,2486.7,4.0212341]
[1750438032615,16.7533,2486.8,2486.7,4.0212341]
[1750438032817,16.696,2486.8,2486.7,4.0212341]
[1750438033021,0.8294,2487.2,2487.1,4.02074705]
[1750438033188,17.5304,2487.2,2487.1,4.02074705]
[1750438033699,16.701,2487.2,2487.1,4.02074705]
[1750438034021,10.0,2487.2,2487.1,4.02074705]
[1750438034206,16.701,2487.2,2487.1,4.8850096]
[1750438034409,16.701,2487.2,2487.1,5.4350096]
[1750438034626,10.0,2487.2,2487.1,5.4350096]
[1750438035136,6.7,2487.3,2487.2,4.57058539]
[1750438035428,16.7,2487.3,2487.2,4.63068539]
[1750438035721,16.702,2487.3,2487.2,4.63068539]
[1750438036284,16.702,2487.3,2487.2,5.97833273]
[1750438036719,6.702,2487.3,2487.2,5.97833273]
[1750438037043,11.7973,2487.9,2487.7,4.01966379]
[1750438037188,11.7973,2487.9,2487.8,4.01950057]
[1750438037515,0.0573,2487.8,2487.7,4.01972154]
[1750438038024,0.3998987,2488.3,2487.7,4.01972154]
[1750438038339,0.3998987,2488.3,2487.6,0.55]
[1750438038340,6.7693,2488.2,2487.6,0.55]
[1750438038501,0.0573,2488.1,2488.0,4.01920521]
[1750438038825,18.90977304,2488.1,2488.0,4.01920521]
[1750438039014,20.4813573,2488.1,2488.0,4.01920521]
[1750438039185,12.0273573,2488.1,2488.0,4.01920521]
[1750438039387,0.0573,2487.9,2487.8,4.01958773]
[1750438039648,6.81063299,2487.9,2487.8,4.01958773]
[1750438039788,7.58773299,2487.9,2487.8,4.01958773]
[1750438039987,8.48123136,2487.9,2487.8,4.01958773]
[1750438040250,8.44089837,2487.9,2487.8,4.01958773]
[1750438040945,1.72789837,2487.9,2487.8,4.01958773]
[1750438041132,19.2854,2487.9,2487.8,4.01958773]
[1750438041337,0.0573,2487.8,2486.9,0.7623]
[1750438041543,6.71,2487.7,2487.0,4.02079468]
[1750438041831,6.71,2487.7,2487.5,4.01996757]
[1750438041832,10.09763299,2487.6,2487.5,4.01996757]
[1750438042044,0.0573,2487.5,2486.9,0.7623]
[1750438042260,6.71,2487.4,2487.3,4.02036838]
[1750438042433,16.7673,2487.4,2487.3,4.02036838]
[1750438042612,17.5508,2487.4,2487.3,4.02036838]
[1750438042815,10.0,2487.3,2487.2,4.02048814]
[1750438043048,7.4935,2487.4,2487.2,4.02048814]
[1750438043244,7.4935,2487.4,2487.1,4.02067661]
[1750438043245,0.0573,2487.3,2487.0,4.02086781]
[1750438043424,0.0573,2487.3,2487.2,4.02058539]
[1750438043748,6.7653,2487.3,2487.2,4.02058539]
[1750438044307,6.7653,2487.3,2486.5,4.02171727]
[1750438044308,10.14651299,2487.3,2486.5,4.02171727]
[1750438044563,0.0573,2487.2,2486.4,0.8009]
[1750438044722,0.04033299,2487.1,2487.0,4.02077378]
[1750438045063,0.92888,2487.3,2487.1,4.02065773]
[1750438045262,8.458,2487.2,2487.1,4.02065773]
[1750438045709,8.458,2487.2,2486.5,0.0601]
[1750438045914,18.49833299,2487.1,2486.8,4.02119666]
[1750438046215,0.0573,2487.0,2486.8,4.02119666]
[1750438046432,0.09763299,2487.0,2486.5,0.33572596]
[1750438046638,0.09763299,2487.0,2486.9,4.0210704]
[1750438047037,0.0573,2487.0,2486.9,4.0210704]
[1750438047244,18.5153,2487.1,2487.0,4.02090872]
[1750438047430,18.5153,2487.1,2486.9,4.02097912]
[1750438047629,0.04033299,2487.0,2486.9,4.02097912]
[1750438048038,0.0573,2487.1,2487.0,4.02090872]
[1750438048240,18.5133,2487.1,2487.0,4.02090872]
[1750438048829,18.456,2487.1,2486.8,4.02112166]
[1750438049034,0.09763299,2487.0,2486.8,4.02112166]
[1750438049214,16.707,2486.9,2486.8,4.02112166]
[1750438050764,16.707,2486.9,2486.7,4.02132401]
[1750438050963,16.7643,2486.9,2486.8,4.0212321]
[1750438051137,17.13665163,2486.9,2486.8,4.0212321]
[1750438051341,10.0,2486.8,2486.1,0.0601]
[1750438051531,10.0,2486.6,2486.5,4.02171727]
[1750438052759,10.0,2486.6,2486.4,4.02182984]
[1750438052961,16.81963299,2486.5,2486.4,4.02182984]
[1750438053162,16.722,2486.5,2486.4,4.02182984]
[1750438053737,17.1189742,2486.5,2486.4,4.02182984]
[1750438054135,18.9252742,2486.5,2486.4,4.02182984]
[1750438054340,18.8679742,2486.5,2486.4,4.02182984]
[1750438054535,10.0,2486.4,2486.3,4.02193703]
[1750438054740,8.9252742,2486.5,2486.3,4.02193703]
[1750438055036,10.92323299,2486.4,2486.2,4.02212743]
[1750438055239,16.722,2486.3,2486.2,4.02212743]
[1750438055666,16.722,2486.3,2485.7,2.35807144]
[1750438055667,0.0573,2486.1,2485.9,4.0226112]
[1750438055872,0.8158,2485.9,2485.8,4.02274847]
[1750438056031,0.0573,2485.8,2485.7,4.02292189]
[1750438056233,0.09763299,2485.8,2485.7,4.02292189]
[1750438056858,10.09763299,2485.8,2485.7,4.02292189]
[1750438057060,10.0573,2485.8,2485.6,4.02308597]
[1750438057259,6.726,2485.7,2485.6,4.02308597]
[1750438057660,0.7585,2485.9,2485.7,4.02301162]
[1750438057861,10.0,2485.8,2485.7,4.02301162]
[1750438058066,0.8158,2486.1,2486.0,4.02252614]
[1750438058267,0.8158,2486.4,2486.3,4.02204078]
[1750438058582,10.0573,2486.4,2486.3,3.97204078]
[1750438058753,18.5353,2486.4,2486.3,3.97204078]
[1750438059372,10.0,2486.3,2486.2,4.02213103]
[1750438059549,8.5916,2486.4,2486.3,4.02204078]
[1750438059878,10.0563,2486.3,2486.2,4.02220255]
[1750438060086,10.0,2486.3,2486.2,4.02220255]
[1750438060281,0.0573,2486.4,2486.3,4.02204078]
[1750438060576,16.7873,2486.4,2486.3,4.02204078]
[1750438061238,16.7963,2486.4,2486.3,4.08084078]
[1750438061849,16.7963,2486.4,2486.3,4.02204078]
[1750438063674,9.52448663,2486.4,2486.0,4.02245978]
[1750438063876,10.04033299,2486.3,2485.7,4.02296828]
[1750438064075,10.0563,2486.1,2485.5,4.57333534]
[1750438064289,10.0,2485.9,2485.8,4.02284978]
[1750438064736,1.749,2486.1,2486.0,4.02252614]
[1750438065090,10.0,2486.0,2485.8,4.02269819]
[1750438065378,10.0,2486.0,2485.9,4.02268796]
[1750438065781,16.858,2486.0,2485.9,4.02268796]
[1750438067339,6.854,2486.0,2485.6,0.0588]
[1750438067542,6.854,2486.0,2485.7,4.02288685]
[1750438067847,6.87,2485.9,2485.7,0.83997629]
[1750438068052,0.8147,2486.3,2486.2,4.02220255]
[1750438068293,0.0573,2486.4,2486.2,4.02220255]
[1750438068452,0.0573,2486.4,2486.3,4.02204078]
[1750438068642,6.9293,2486.4,2486.3,4.02204078]
[1750438068844,16.9293,2486.4,2486.3,4.02204078]
[1750438070378,0.0573,2486.4,2486.3,4.02204078]
[1750438070570,6.9233,2486.4,2486.3,4.02204078]
[1750438070888,0.0573,2486.4,2486.3,4.02204078]
[1750438071047,10.0573,2486.4,2486.3,4.02204078]
[1750438071246,16.9213,2486.4,2486.3,4.02204078]
[1750438071853,10.0,2486.3,2486.2,4.02213305]
[1750438072171,0.0563,2486.3,2486.1,4.02226174]
[1750438072386,16.86,2486.2,2486.1,4.02226174]
[1750438072790,10.0,2486.1,2486.0,4.02245333]
[1750438072976,6.86,2486.2,2486.0,4.02245333]
[1750438073506,7.745,2486.2,2486.0,4.02245333]
[1750438074700,7.745,2486.2,2486.1,4.02236434]
[1750438076088,7.745,2486.2,2486.0,4.0224315]
[1750438076414,0.0563,2486.1,2486.0,4.02252614]
[1750438076915,7.745,2486.2,2485.9,4.02257261]
[1750438077212,0.04033299,2486.1,2485.6,0.8617]
[1750438077511,0.04033299,2486.1,2486.0,4.02252614]
[1750438077934,8.5236333,2486.2,2486.0,4.02243109]
[1750438078079,0.04033299,2486.1,2486.0,4.02243109]
[1750438078281,0.09663299,2486.1,2486.0,4.02243109]
[1750438078676,0.09663299,2486.1,2485.9,4.0225928]
[1750438079214,10.09663299,2486.1,2486.0,4.02252614]
[1750438079376,12.13641166,2486.1,2485.8,4.02284978]
[1750438079578,11.85639663,2486.1,2485.9,4.02267372]
[1750438079787,0.0573,2486.4,2486.3,4.02204078]
[1750438080003,16.9013,2486.4,2486.3,4.02204078]
[1750438080408,16.9023,2486.4,2486.3,4.02204078]
[1750438081316,16.9586,2486.4,2486.3,4.02204078]
[1750438081517,18.63888713,2486.4,2486.3,4.02204078]
[1750438081818,16.8993,2486.4,2486.3,4.02204078]
[1750438083122,16.8993,2486.4,2486.3,4.08084078]
[1750438083123,16.9013,2486.4,2486.3,4.08084078]
[1750438083728,10.0573,2486.4,2486.3,4.63084078]
[1750438084011,16.9013,2486.4,2486.3,4.63084078]
[1750438084835,10.0573,2486.4,2486.3,4.63084078]
[1750438085114,0.0573,2486.4,2486.3,5.61904142]
[1750438085279,0.0573,2486.4,2486.3,6.37724142]
[1750438085791,0.0573,2486.4,2486.3,6.33702504]
[1750438086811,0.0573,2486.4,2486.3,6.37723807]
[1750438087018,0.0573,2486.4,2486.3,6.33702504]
[1750438089892,0.0573,2486.4,2486.3,19.80441588]
[1750438090087,0.0573,2486.4,2486.3,5.82142504]
[1750438090389,0.0573,2486.4,2486.3,8.18542504]
[1750438092490,0.0573,2486.4,2486.3,6.37142504]
[1750438092892,0.0573,2486.4,2486.3,4.87344078]
[1750438093233,6.92563299,2486.4,2485.8,4.02284978]
[1750438093441,10.0,2486.3,2486.2,4.02204633]
[1750438093792,10.0585,2486.3,2486.2,4.02204633]
[1750438093989,11.75288,2486.3,2486.2,4.02204633]
[1750438094605,0.8391,2486.2,2486.1,4.02228202]
[1750438095227,0.8391,2486.2,2486.0,4.02245331]
[1750438095228,0.87943299,2486.2,2486.0,4.02244204]
[1750438095543,0.87943299,2486.2,2485.8,4.02276769]
[1750438095544,0.0585,2486.1,2485.8,4.02276769]
[1750438095746,0.0585,2486.1,2485.4,4.02347859]
[1750438095747,4.87507661,2486.0,2485.4,4.02347859]
[1750438096049,10.0585,2485.8,2485.7,4.02301162]
[1750438096344,0.0585,2485.7,2485.6,4.02308392]
[1750438096488,0.09883299,2485.7,2485.6,4.02308392]
[1750438096695,0.0585,2485.7,2485.6,4.02308392]
[1750438096917,10.0585,2485.8,2485.7,4.02301162]
[1750438097445,7.99817567,2485.9,2485.8,4.02284978]
[1750438097446,1.16917567,2485.9,2485.8,4.02284978]
[1750438097644,17.99717567,2485.9,2485.8,4.02284978]
[1750438097822,10.0585,2485.8,2485.7,4.02292522]
[1750438098145,0.0585,2485.7,2485.6,4.02309689]
[1750438098344,0.09883299,2485.7,2485.4,4.02343602]
[1750438098511,0.0585,2485.6,2485.4,4.02341955]
[1750438098695,16.8815,2485.5,2485.4,4.02349722]
[1750438098895,10.0,2485.4,2485.3,4.02978497]
[1750438099328,17.6932,2485.5,2485.4,4.02349722]
[1750438099646,10.0,2485.4,2485.3,4.02983866]
[1750438099940,10.0,2485.4,2485.3,4.02981576]
[1750438100098,11.22767567,2485.4,2485.3,0.0062432]
[1750438100296,11.22767567,2485.4,2485.3,4.02990231]
[1750438100838,11.22767567,2485.4,2485.3,0.0062432]
[1750438101129,11.22767567,2485.4,2485.3,4.02990231]
[1750438101795,11.63314798,2485.4,2485.3,4.02990231]
[1750438102333,11.63314798,2485.4,2485.3,0.0062432]
[1750438104032,11.63314798,2485.4,2485.3,4.02990231]
[1750438105250,11.63314798,2485.4,2485.3,0.0062432]
[1750438105944,8.38264798,2485.4,2485.3,4.02990231]
[1750438106183,7.21347231,2485.4,2485.3,4.02990231]
[1750438106551,7.21847231,2485.4,2485.3,4.02990231]
[1750438106753,16.813,2485.4,2485.3,4.02990231]
[1750438107333,16.8715,2485.4,2485.3,4.02990231]
[1750438107533,16.813,2485.4,2485.3,4.02990231]
[1750438108471,10.0,2485.4,2485.3,4.02990231]
[1750438108783,16.813,2485.4,2485.3,4.08860231]
[1750438109085,16.813,2485.4,2485.3,4.02990231]
[1750438109445,10.0,2485.4,2485.3,4.08860231]
[1750438109651,16.806,2485.4,2485.3,4.08860231]
[1750438110375,16.806,2485.4,2485.3,4.02990231]
[1750438110939,16.806,2485.4,2485.3,4.08860231]
[1750438111139,16.805,2485.4,2485.3,5.57019806]
[1750438111358,16.805,2485.4,2485.3,5.52996423]
[1750438111737,6.805,2485.4,2485.3,5.51149676]
[1750438112283,6.805,2485.4,2485.3,5.47126423]
[1750438112654,6.805,2485.4,2485.3,5.52996423]
[1750438113837,6.805,2485.4,2485.3,4.02990231]
[1750438114345,16.805,2485.4,2485.3,4.02990231]
[1750438115273,16.8635,2485.4,2485.3,4.02990231]
[1750438116269,16.805,2485.4,2485.3,3.97990231]
[1750438120278,0.0601,2485.3,2485.2,4.02372502]
[1750438120436,0.04033299,2485.3,2485.2,4.02382102]
[1750438120641,0.8858,2485.2,2485.1,4.02390208]
[1750438120863,0.0601,2485.0,2484.9,4.02415774]
[1750438121060,16.89743299,2485.0,2484.9,4.02415774]
[1750438121271,10.0,2484.9,2484.3,0.854]
[1750438121475,10.0,2484.7,2484.6,4.02463908]
[1750438121676,10.0,2484.7,2484.6,3.97463908]
[1750438122366,10.0601,2484.7,2484.6,3.97463908]
[1750438125352,11.15134237,2484.7,2484.6,3.97463908]
[1750438125682,0.829,2484.6,2484.4,4.02498552]
[1750438125884,12.88424237,2484.7,2484.4,4.02511672]
[1750438125885,16.79,2484.5,2484.4,4.02511672]
[1750438126056,0.829,2485.2,2485.0,4.02401602]
[1750438126261,17.57858395,2485.1,2485.0,4.02401602]
[1750438126497,17.16562246,2485.1,2485.0,4.02401602]
[1750438126793,0.8891,2485.2,2485.0,4.02401602]
[1750438126794,0.829,2485.2,2485.1,4.02398293]
[1750438126996,7.66533299,2485.2,2485.1,4.02398293]
[1750438127294,8.67727629,2485.2,2485.1,4.02398293]
[1750438127508,8.6369433,2485.2,2485.0,4.02405426]
[1750438127663,0.10043299,2485.1,2485.0,4.02405426]
[1750438128087,6.83733299,2485.1,2485.0,4.02405426]
[1750438130464,10.0,2485.0,2484.9,4.02416995]
[1750438131192,11.7626,2485.0,2484.4,1.3449]
[1750438131398,11.7626,2485.0,2484.3,0.0592]
[1750438131399,10.0601,2484.8,2484.7,4.02463074]
[1750438131598,0.8238,2484.7,2484.6,4.02472251]
[1750438131894,7.65513299,2484.7,2484.6,4.02479272]
[1750438132255,0.0601,2484.6,2484.5,4.02486054]
[1750438132451,0.0601,2484.6,2484.4,4.02509265]
[1750438133639,16.805,2484.6,2484.5,4.02495471]
[1750438134421,17.5714,2484.6,2484.5,4.02495471]
[1750438134940,16.805,2484.6,2484.5,4.02495471]
[1750438135898,10.0,2484.6,2484.5,4.02495471]
[1750438136119,10.0,2484.6,2484.5,4.08415471]
[1750438136120,16.804,2484.6,2484.5,4.08415471]
[1750438136948,16.804,2484.6,2484.5,4.02495471]
[1750438137815,10.0,2484.6,2484.5,4.08415471]
[1750438138052,32.5564,2485.1,2485.0,4.02414486]
[1750438138256,49.72822904,2485.1,2485.0,4.02414486]
[1750438138551,40.7664,2485.1,2485.0,4.02414486]
[1750438138772,10.0,2485.0,2484.6,0.7524]
[1750438138971,0.0601,2485.0,2484.9,4.02430681]
[1750438139175,6.8571,2485.0,2484.9,4.02430681]
[1750438139549,10.8171,2484.9,2484.6,4.02468933]
[1750438139761,10.0,2484.7,2484.6,4.02479272]
[1750438140978,6.81,2484.7,2484.4,4.02504635]
[1750438141153,1.09943433,2484.6,2484.4,4.02504635]
[1750438141356,1.08031978,2484.6,2484.5,4.02493808]
[1750438141557,17.20430978,2484.6,2484.5,4.02493808]
[1750438142778,17.20430978,2484.6,2484.1,0.8828]
[1750438142779,16.8711,2484.6,2484.1,0.8828]
[1750438143083,0.04033299,2484.5,2484.2,4.02537491]
[1750438143281,16.809,2484.4,2484.3,4.02527875]
[1750438145509,16.809,2484.4,2484.3,4.08447875]
[1750438145707,10.0,2484.4,2484.3,4.08447875]
[1750438145916,2.6119,2485.1,2485.0,4.02414486]
[1750438146228,6.803,2485.1,2485.0,4.02414486]
[1750438146528,0.8219,2485.4,2485.3,4.02365911]
[1750438146683,7.18540581,2485.4,2485.3,4.02365911]
[1750438147100,10.0,2485.6,2485.5,4.02333534]
[1750438147303,17.18465053,2485.6,2485.5,4.02333534]
[1750438147502,17.78089405,2485.6,2485.5,4.02333534]
[1750438147699,17.78089405,2485.6,2485.4,4.02335736]
[1750438147893,12.3191,2485.8,2485.4,4.02335736]
[1750438147894,0.37265196,2485.5,2485.4,4.08255736]
[1750438148191,0.37264327,2485.7,2485.4,0.0592]
[1750438148408,6.809,2485.6,2485.5,0.0573]
[1750438148705,7.24359822,2485.6,2485.3,4.02365911]
[1750438148922,7.62616708,2485.6,2485.5,4.02333534]
[1750438149122,7.99866198,2485.6,2485.4,4.02342858]
[1750438149270,7.62616708,2485.6,2485.4,4.02342858]
[1750438150044,7.62616708,2485.6,2485.3,4.02357843]
[1750438150820,7.62616708,2485.6,2485.4,4.02349466]
[1750438151320,7.68826708,2485.6,2485.3,4.02360676]
[1750438151510,10.0,2485.5,2485.3,4.02360676]
[1750438151805,6.90243299,2485.4,2485.1,4.02394624]
[1750438151992,6.90243299,2485.4,2485.2,4.02369182]
[1750438152305,6.90243299,2485.4,2485.1,4.02391505]
[1750438152469,7.99716195,2485.4,2485.1,4.02391505]
[1750438152670,7.99716195,2485.4,2485.2,4.02379574]
[1750438153477,17.89472896,2485.4,2485.3,4.02365911]
[1750438153678,10.0,2485.4,2485.3,4.02365911]
[1750438153880,16.796,2485.4,2485.2,4.02375856]
[1750438154492,16.796,2485.4,2484.9,4.79155849]
[1750438154493,16.8581,2485.4,2484.9,4.79155849]
[1750438154676,0.04033299,2485.3,2485.0,4.02406929]
[1750438154876,6.794,2485.2,2485.1,4.02398293]
[1750438155109,6.794,2485.2,2484.9,4.02420041]
[1750438155314,0.04033299,2485.1,2484.9,4.02420041]
[1750438155616,6.793,2485.0,2484.9,4.02420041]
[1750438155821,7.574,2485.0,2484.9,4.02420041]
[1750438156007,10.0,2484.9,2484.8,4.02432663]
[1750438156718,18.2573333,2485.0,2484.7,4.02458105]
[1750438156922,10.04033299,2484.9,2484.5,4.79564289]
[1750438157080,10.0,2484.7,2484.5,4.02487054]
[1750438157286,6.79,2484.6,2484.5,4.02487054]
[1750438157823,1.79,2485.2,2485.0,4.02410636]
[1750438158023,0.8537,2485.5,2485.2,4.02382102]
[1750438158225,7.54124054,2485.4,2485.2,4.02382102]
[1750438158528,6.796,2485.4,2485.3,4.02365911]
[1750438158846,17.1686074,2485.4,2485.3,4.02365911]
[1750438158989,17.1676074,2485.4,2485.3,4.02365911]
[1750438159188,17.1676074,2485.4,2485.2,4.02372517]
[1750438159492,16.795,2485.4,2485.2,4.02371999]
[1750438159682,10.10243299,2485.3,2485.0,4.02407447]
[1750438159886,6.792,2485.2,2485.0,4.02407447]
[1750438160095,0.04033299,2485.1,2485.0,4.02407447]
[1750438160423,6.792,2485.2,2485.1,4.02398293]
[1750438160922,6.8541,2485.2,2485.0,4.02413681]
[1750438161131,6.8541,2485.2,2484.8,4.02435232]
[1750438161132,0.8916,2485.0,2484.8,4.0243853]
[1750438161292,10.0,2484.8,2484.7,4.02454306]
[1750438162433,10.0,2484.8,2484.7,4.08184306]
[1750438162650,2.412,2485.5,2484.7,4.08184306]
[1750438162651,11.79,2485.3,2484.7,0.0573]
[1750438162870,10.0,2485.1,2485.0,4.02407458]
[1750438164548,1.39829908,2485.3,2485.1,4.02390398]
[1750438164755,17.57090002,2485.2,2485.1,4.02390398]
[1750438165055,17.15778816,2485.2,2485.1,4.02390398]
[1750438165253,17.15789051,2485.2,2485.1,4.02390398]
[1750438165550,16.78,2485.2,2485.1,4.02390398]
[1750438166114,16.779,2485.2,2485.1,4.02390398]
[1750438166958,19.191,2485.2,2485.1,4.02390398]
[1750438167127,19.191,2485.2,2485.0,4.02404709]
[1750438167128,6.8411,2485.2,2485.0,4.02404709]
[1750438167457,6.779,2485.2,2485.0,4.02404709]
[1750438167816,6.779,2485.2,2485.1,4.02398293]
[1750438169730,7.5715,2485.2,2485.1,4.02398293]
[1750438169937,10.0621,2485.1,2484.8,4.02439571]
[1750438170152,19.08490309,2485.2,2484.7,4.02449067]
[1750438170153,10.0,2484.9,2484.7,4.02449067]
[1750438170436,10.8636,2484.7,2484.5,4.02486675]
[1750438170639,6.81433299,2484.6,2484.4,4.02503635]
[1750438171044,6.87643299,2484.6,2484.3,4.02518869]
[1750438171225,6.87643299,2484.6,2484.2,4.02535032]
[1750438171226,6.87643299,2484.6,2484.4,4.02511499]
[1750438171621,6.81433299,2484.6,2484.4,4.02501924]
[1750438171823,6.81433299,2484.6,2484.5,4.02495471]
[1750438172377,6.87643299,2484.6,2484.4,4.02505136]
[1750438172555,6.87643299,2484.6,2483.8,0.794]
[1750438172556,19.78804258,2484.5,2483.8,0.794]
[1750438172860,19.78804258,2484.5,2484.1,4.02560283]
[1750438172861,0.0621,2484.2,2484.1,4.02560283]
[1750438173013,0.0621,2484.2,2483.6,0.794]
[1750438173014,10.0,2484.1,2483.6,0.794]
[1750438173213,6.88643299,2484.2,2483.9,4.02592696]
[1750438173214,16.82333299,2484.0,2483.9,4.02592696]
[1750438173445,16.783,2484.0,2483.9,4.02592696]
[1750438176658,0.39353622,2484.6,2484.5,4.02495471]
[1750438176864,16.778,2484.6,2484.5,4.02495471]
[1750438177152,17.54658287,2484.6,2484.5,4.02495471]
[1750438177353,17.54658696,2484.6,2484.5,4.02495471]
[1750438177743,17.17378801,2484.6,2484.5,4.02495471]
[1750438180071,17.17378801,2484.6,2483.4,4.08810756]
[1750438180072,0.7895,2484.4,2483.4,4.08810756]
[1750438180370,0.0563,2484.2,2483.5,0.7663]
[1750438180538,10.0,2484.0,2483.8,4.02599397]
[1750438180871,10.7895,2483.8,2483.7,4.02625115]
[1750438181980,10.8458,2483.8,2483.7,4.02625115]
[1750438182356,10.7895,2483.8,2483.7,4.02625115]
[1750438183149,10.8458,2483.8,2483.6,4.02640272]
[1750438183343,10.8458,2483.8,2483.3,0.7663]
[1750438183344,10.0,2483.6,2483.5,4.02649876]
[1750438183585,10.0563,2483.6,2483.5,4.02649876]
[1750438183999,10.0,2483.6,2483.5,4.02649876]
[1750438184899,16.8313,2483.7,2483.6,4.02641327]
[1750438185466,16.771,2483.7,2483.6,4.02641327]
[1750438185875,1.781,2484.2,2484.1,4.02560283]
[1750438186200,1.781,2484.2,2483.6,4.79271019]
[1750438186201,10.0,2484.1,2483.6,4.79271019]
[1750438186364,8.552,2484.2,2483.6,4.79271019]
[1750438186365,16.776,2484.0,2483.9,4.02592696]
[1750438186695,6.776,2484.0,2483.9,4.02592696]
[1750438191088,0.04033299,2484.1,2484.0,4.02576489]
[1750438191403,7.99609629,2484.1,2484.0,4.02576489]
[1750438192007,7.99609629,2484.1,2483.8,4.02594837]
[1750438192210,17.99609629,2484.1,2483.9,4.02592554]
[1750438192501,17.9557633,2484.1,2483.9,4.02592554]
[1750438192673,17.9557633,2484.1,2483.8,4.02596692]
[1750438193287,17.9557633,2484.1,2483.9,4.02579854]
[1750438193493,1.67579237,2484.0,2483.8,4.02593018]
[1750438193700,1.67579237,2484.0,2483.9,4.02592696]
[1750438194002,6.764,2484.0,2483.9,4.02592696]
[1750438194499,16.764,2484.0,2483.9,4.02592696]
[1750438194903,0.39378801,2484.6,2484.5,4.82655471]
[1750438195202,6.808,2484.8,2484.3,4.82681489]
[1750438195404,9.26033299,2484.7,2483.7,0.0615]
[1750438195609,0.0563,2484.2,2483.8,4.02604151]
[1750438195914,6.824,2484.1,2484.0,3.97565891]
[1750438196227,6.824,2484.1,2483.4,4.88983753]
[1750438196228,6.92063299,2484.1,2483.4,4.88983753]
[1750438196440,6.92063299,2484.1,2484.0,4.02576489]
[1750438196735,3.2922,2484.3,2484.1,4.02556654]
[1750438196938,8.635,2484.2,2484.1,4.02556654]
[1750438198229,8.635,2484.2,2484.0,4.0256992]
[1750438198522,0.4132169,2484.1,2484.0,4.0256992]
[1750438198719,0.41327584,2484.1,2484.0,4.0256992]
[1750438198906,0.04033299,2484.1,2484.0,4.0256992]
[1750438199105,9.05028166,2484.1,2484.0,4.0256992]
[1750438199309,8.637,2484.1,2484.0,4.0256992]
[1750438199512,8.637,2484.1,2484.0,4.83085594]
[1750438200111,8.637,2484.1,2484.0,4.0256992]
[1750438200487,0.8247,2484.0,2483.4,0.8205]
[1750438200734,0.8247,2484.0,2483.4,4.02663872]
[1750438200735,0.8247,2483.8,2483.4,4.02663872]
[1750438200890,7.31269989,2483.7,2483.4,4.02663046]
[1750438201094,1.799,2483.6,2483.5,4.02657539]
[1750438201307,2.17207182,2483.6,2483.5,4.02657539]
[1750438201509,2.21240481,2483.6,2483.4,4.02667502]
[1750438201730,0.0563,2483.1,2482.8,4.02764924]
[1750438202038,1.799,2483.3,2483.2,4.02706185]
[1750438202240,1.799,2483.3,2483.2,4.08856185]
[1750438202391,0.8855,2483.9,2483.8,4.02608905]
[1750438202590,10.53803862,2483.9,2483.8,4.02608905]
[1750438202824,9.11264371,2483.9,2483.8,4.02608905]
[1750438203024,9.11263878,2483.9,2483.8,4.02608905]
[1750438203536,9.11263842,2483.9,2483.8,4.02608905]
[1750438203902,9.48327246,2483.9,2483.8,4.02608905]
[1750438204128,9.11064847,2483.9,2483.8,4.02608905]
[1750438204930,19.11069766,2483.9,2483.8,4.02608905]
[1750438205489,10.0,2483.8,2483.7,4.02618396]
[1750438206229,8.7943,2483.9,2483.4,4.02667734]
[1750438206432,0.41301456,2483.8,2483.2,0.8764]
[1750438206650,0.41301456,2483.8,2483.7,4.02625115]
[1750438206809,0.41305084,2483.8,2483.6,4.02636114]
[1750438207009,0.41305084,2483.8,2483.5,4.0264517]
[1750438207010,0.04033299,2483.8,2483.7,4.02625115]
[1750438207279,10.41300985,2483.8,2483.7,4.02625115]
[1750438207424,10.37267634,2483.8,2483.6,4.02634107]
[1750438207625,10.0,2483.8,2483.6,4.02634107]
[1750438208026,10.7803,2483.6,2482.6,0.0615]
[1750438208310,10.7803,2483.6,2483.0,4.02736425]
[1750438208311,0.0563,2483.2,2483.0,4.02736425]